bitfinex-derivatives/quotes_ETHF0:USTF0_20220106
["timestamp","ask_amount","ask_price","bid_price","bid_amount"]
[1641467783398,0.14398067,3360.1,3359.9,0.76606005]
[1641467784101,0.37397167,3360.1,3359.9,0.76606005]
[1641467784300,0.37397167,3360.1,3360.0,1.63656972]
[1641467784499,0.14398067,3360.1,3360.0,1.63656972]
[1641467785300,0.37397167,3360.1,3360.0,1.63656972]
[1641467786102,0.37397167,3360.1,3359.8,1.13799767]
[1641467786703,0.14398067,3360.0,3359.8,1.13799767]
[1641467786904,0.14398067,3360.0,3359.9,0.0027]
[1641467787302,0.14398067,3360.1,3359.9,2.00749]
[1641467787503,0.14398067,3360.0,3359.9,2.00749]
[1641467787706,0.14398067,3360.0,3359.9,2.139884]
[1641467788104,0.14398067,3360.1,3359.9,2.139884]
[1641467788307,0.37397167,3360.0,3359.9,2.137184]
[1641467788505,0.14398067,3360.0,3359.9,2.137184]
[1641467788906,0.14398067,3360.1,3359.9,2.137184]
[1641467789106,0.14398067,3360.0,3359.9,2.137184]
[1641467789507,0.14398067,3360.0,3359.9,2.139884]
[1641467789708,0.14398067,3360.0,3359.9,3.77370274]
[1641467789907,0.14398067,3360.1,3359.9,3.77370274]
[1641467790308,0.14398067,3360.1,3360.0,0.0027]
[1641467791209,0.37397167,3360.1,3359.9,3.77370274]
[1641467791413,0.14398067,3360.1,3360.0,1.63921874]
[1641467791611,1.5,3360.2,3360.0,1.63921874]
[1641467791912,1.5,3360.2,3360.0,1.63651874]
[1641467792310,0.229991,3360.1,3360.0,1.63651874]
[1641467792711,1.0,3360.2,3360.0,1.63651874]
[1641467792912,1.0,3360.2,3360.0,1.30751613]
[1641467793113,0.229991,3360.1,3360.0,0.67390106]
[1641467793315,1.0,3360.2,3360.0,0.50560367]
[1641467793513,0.5,3360.2,3360.0,0.50560367]
[1641467793913,0.5,3360.2,3360.0,0.00560367]
[1641467794113,0.229991,3360.1,3359.9,2.00479]
[1641467794713,0.060894,3360.0,3359.9,2.00479]
[1641467797522,1.0,3360.1,3359.9,2.137184]
[1641467797722,0.229991,3360.0,3359.9,2.137184]
[1641467797922,0.729991,3360.0,3359.9,2.137184]
[1641467799021,1.229991,3360.0,3359.9,2.137184]
[1641467800023,1.229991,3360.0,3359.9,2.00479]
[1641467800625,1.229991,3360.0,3359.5,3.34446726]
[1641467800826,14.089991,3360.0,3359.5,1.33967726]
[1641467801027,0.060894,3359.9,3359.5,1.33967726]
[1641467801424,12.86,3359.5,3359.3,1.67470478]
[1641467801625,0.290885,3359.4,3359.3,4.78e-06]
[1641467801824,12.86,3359.3,3358.8,2.50898661]
[1641467802225,12.86,3359.1,3358.8,2.50898661]
[1641467802426,13.089991,3359.1,3358.8,2.50898661]
[1641467803326,13.089991,3359.1,3358.2,2.00479]
[1641467803327,13.089991,3359.1,3358.6,2.8509704]
[1641467803529,2.00479,3358.7,3358.6,2.8509704]
[1641467803728,2.234781,3358.7,3358.6,2.8509704]
[1641467803927,15.094781,3358.7,3358.6,2.8509704]
[1641467804129,15.155675,3358.7,3358.6,2.00960888]
[1641467804626,15.155675,3358.7,3358.3,0.63112793]
[1641467805427,17.160465,3358.7,3358.3,0.63112793]
[1641467806131,17.160465,3358.7,3357.9,2.00960888]
[1641467806328,17.160465,3358.7,3357.7,1.47267123]
[1641467806532,0.14404192,3358.6,3357.7,1.47267123]
[1641467808429,0.14404192,3358.6,3357.8,0.16835355]
[1641467808628,0.14404192,3358.6,3357.9,0.132394]
[1641467809031,0.14404192,3358.6,3358.0,0.16835355]
[1641467809430,0.14404192,3358.6,3358.1,0.132394]
[1641467809831,0.14404192,3358.6,3358.2,0.16835355]
[1641467812635,0.060894,3358.5,3358.2,0.16835355]
[1641467812836,0.229991,3358.4,3358.2,0.16835355]
[1641467813038,0.37403292,3358.4,3357.7,0.16835355]
[1641467813238,0.002,3357.7,3357.6,2.8463333]
[1641467813437,0.002,3357.7,3357.6,0.8415433]
[1641467813840,0.292885,3357.7,3357.6,0.8415433]
[1641467814440,0.43692692,3357.7,3357.4,2.00960888]
[1641467814941,0.14404192,3357.6,3357.3,1.00464704]
[1641467815141,0.290885,3357.5,3357.3,1.00464704]
[1641467815544,2.295675,3357.5,3357.3,1.00464704]
[1641467816343,2.295675,3357.5,3357.3,1.00264704]
[1641467816744,2.00479,3357.5,3357.4,0.0027]
[1641467816943,1.84017791,3358.7,3357.4,0.0027]
[1641467817144,1.84017791,3358.7,3357.4,0.5532]
[1641467817444,2.00479,3358.0,3357.4,0.5532]
[1641467817645,2.00479,3358.0,3357.4,0.685594]
[1641467818045,0.20495359,3357.9,3357.4,0.682894]
[1641467818445,0.14405959,3357.8,3357.4,0.682894]
[1641467819348,2.00479,3358.0,3357.4,0.682894]
[1641467819349,0.14405959,3357.9,3357.5,0.63127876]
[1641467819546,2.00479,3358.0,3357.5,0.63127876]
[1641467819745,0.14406045,3357.8,3357.6,0.132394]
[1641467819948,0.14406045,3357.9,3357.7,0.0027]
[1641467820147,2.00479,3358.0,3357.8,0.132394]
[1641467821152,2.00479,3358.0,3357.9,0.0027]
[1641467821349,2.234781,3358.0,3357.8,0.132394]
[1641467821549,2.00479,3358.0,3357.8,0.132394]
[1641467821949,2.00479,3358.0,3357.9,0.0027]
[1641467822149,2.00479,3358.0,3357.8,0.132394]
[1641467822849,0.5,3357.9,3357.8,0.132394]
[1641467823050,0.5,3357.9,3357.8,1.632394]
[1641467823250,0.5,3358.7,3357.8,1.632394]
[1641467823251,0.5,3358.7,3357.8,3.12071293]
[1641467823449,0.5,3358.7,3358.3,3.50479]
[1641467823650,0.5,3358.7,3358.4,0.132394]
[1641467823851,0.5,3358.7,3358.3,3.710184]
[1641467824252,0.0001,3358.7,3358.6,1.135094]
[1641467824450,1.34017791,3359.4,3358.6,1.135094]
[1641467824851,1.34017791,3359.4,3358.7,0.0715]
[1641467825051,1.34017791,3359.4,3358.7,1.206594]
[1641467825653,0.364906,3359.4,3358.9,2.00479]
[1641467825853,0.364906,3359.6,3359.0,0.0715]
[1641467826053,2.00479,3359.7,3358.9,1.57629]
[1641467826655,2.00479,3359.7,3358.9,1.07629]
[1641467826855,0.364906,3359.5,3358.9,1.07629]
[1641467827053,2.00479,3359.7,3358.9,1.07629]
[1641467827455,0.364906,3359.0,3358.9,1.07629]
[1641467828056,2.00479,3359.7,3358.9,1.07629]
[1641467828457,2.00479,3359.7,3359.0,0.16831959]
[1641467828657,0.364906,3359.1,3359.0,0.16831959]
[1641467830360,1.5,3359.9,3359.0,0.16831959]
[1641467830559,0.364906,3359.1,3359.0,0.16831959]
[1641467830763,0.594897,3359.1,3359.0,0.16831959]
[1641467831361,1.094897,3359.1,3359.0,0.16831959]
[1641467832262,1.594897,3359.1,3359.0,0.16831959]
[1641467832764,1.229991,3359.1,3359.0,0.16831959]
[1641467833368,1.864906,3359.1,3359.0,0.16831959]
[1641467833769,2.094897,3359.1,3359.0,0.16831959]
[1641467833967,1.864906,3359.1,3359.0,0.16831959]
[1641467834168,1.5,3359.1,3359.0,0.16831959]
[1641467834372,3.0,3359.1,3359.0,0.16831959]
[1641467837572,3.229991,3359.1,3359.0,0.16831959]
[1641467837776,3.0,3359.1,3359.0,0.16831959]
[1641467840575,3.0,3359.1,3359.0,1.80311699]
[1641467840977,2.00479,3359.6,3359.0,1.80311699]
[1641467841182,0.364906,3360.0,3359.5,1.135094]
[1641467841577,0.364906,3360.0,3359.7,2.00479]
[1641467841977,0.364906,3360.0,3359.8,0.16831959]
[1641467842279,0.364906,3360.1,3359.8,0.16831959]
[1641467842475,3.34496791,3360.5,3359.8,0.16831959]
[1641467842678,0.364906,3360.1,3359.8,0.16831959]
[1641467843077,0.364906,3360.1,3360.0,0.05]
[1641467843476,0.364906,3360.1,3360.0,0.21831959]
[1641467843676,0.364906,3360.1,3360.0,0.05]
[1641467843877,0.364906,3360.1,3360.0,0.21831959]
[1641467844677,2.00479,3360.5,3360.0,0.21831959]
[1641467844879,0.7525,3360.8,3360.1,1.135094]
[1641467845078,0.7525,3360.8,3360.3,1.135094]
[1641467845278,0.1439376,3360.7,3360.3,1.135094]
[1641467845678,0.1439376,3360.7,3360.4,2.17310959]
[1641467846278,0.1439376,3360.7,3360.5,0.16831959]
[1641467846878,1.1439376,3360.7,3360.5,0.16831959]
[1641467847079,1.6439376,3360.7,3360.5,0.16831959]
[1641467847283,0.1439376,3360.6,3360.5,0.16831959]
[1641467848781,0.7388346,3360.6,3360.5,0.16831959]
[1641467848981,0.5088436,3360.6,3360.5,0.16831959]
[1641467849188,0.1439376,3360.6,3360.5,0.16831959]
[1641467849381,0.5088436,3360.6,3360.5,0.16831959]
[1641467849782,0.1439376,3360.6,3360.5,0.16831959]
[1641467852085,3.0,3360.7,3360.6,0.0571624]
[1641467852485,2.5,3360.7,3360.6,0.0571624]
[1641467852883,0.4428376,3360.6,3360.4,2.00479]
[1641467853183,0.4428376,3360.6,3360.5,0.1682534]
[1641467853784,0.9428376,3360.6,3360.5,0.1682534]
[1641467856186,1.4428376,3360.6,3360.5,0.1682534]
[1641467856787,1.9428376,3360.6,3360.5,0.1682534]
[1641467857490,1.34017791,3361.8,3360.5,1.65543022]
[1641467857688,1.34017791,3361.8,3361.1,2.00479]
[1641467857887,1.33617791,3361.8,3361.1,2.00479]
[1641467858089,1.33617791,3361.8,3361.2,0.1682534]
[1641467858690,2.00479,3361.9,3361.2,0.1682534]
[1641467859692,2.00479,3361.9,3361.2,0.9807534]
[1641467859891,2.137184,3361.9,3361.2,0.9807534]
[1641467860094,2.137184,3361.9,3361.3,0.1682534]
[1641467860691,0.364906,3361.4,3361.3,0.1682534]
[1641467861092,0.594897,3361.4,3361.3,0.1682534]
[1641467861294,0.594897,3361.4,3361.3,5.34e-05]
[1641467861694,0.727291,3361.4,3361.3,5.34e-05]
[1641467861992,15.592081,3361.4,3361.2,0.8125]
[1641467862391,2.732081,3361.4,3361.2,0.8125]
[1641467865099,2.732081,3361.4,3361.3,0.16824758]
[1641467866199,1.941084,3361.4,3361.3,0.16824758]
[1641467866798,1.941084,3361.4,3361.3,0.39823858]
[1641467866998,1.864475,3361.4,3361.3,0.16824758]
[1641467868003,2.441084,3361.4,3361.3,0.16824758]
[1641467868302,2.5876879,3361.4,3361.3,0.16824758]
[1641467868704,3.5110789,3361.4,3361.3,0.16824758]
[1641467868903,5.0876879,3361.4,3361.3,0.16824758]
[1641467870008,5.0110789,3361.4,3361.3,0.39823858]
[1641467870212,5.0876879,3361.4,3361.3,0.16824758]
[1641467870410,6.5876879,3361.4,3361.2,0.8125]
[1641467870610,6.5876879,3361.4,3360.6,1.1562]
[1641467870911,0.1466039,3361.3,3360.6,1.1562]
[1641467871115,0.132394,3361.2,3360.7,0.16825911]
[1641467872212,0.1304793,3361.1,3360.7,0.16825911]
[1641467873416,0.1304793,3361.1,3360.8,0.132394]
[1641467873618,0.1304793,3361.1,3360.9,0.229991]
[1641467873818,0.1304793,3361.1,3360.9,0.39825011]
[1641467874018,0.1304793,3361.3,3361.0,0.16825911]
[1641467874418,0.1304793,3361.3,3361.1,0.229991]
[1641467874819,0.1304793,3361.3,3361.2,0.16825911]
[1641467875919,3.0,3361.4,3361.2,1.6549893]
[1641467876123,3.0,3361.4,3361.3,0.362385]
[1641467876520,3.0,3361.4,3361.3,0.53064411]
[1641467876819,3.13044131,3361.4,3361.3,0.53064411]
[1641467883026,3.0,3361.4,3361.3,0.53064411]
[1641467883424,1.33508901,3362.4,3361.3,0.53064411]
[1641467883623,1.33508901,3362.4,3361.7,1.5]
[1641467883824,1.33508901,3362.4,3362.0,1.48652244]
[1641467884025,0.13041968,3362.3,3362.0,1.48652244]
[1641467884224,0.13041968,3362.3,3362.1,0.39825011]
[1641467884425,0.13041968,3362.3,3362.2,0.132394]
[1641467884628,0.13041968,3362.3,3362.2,0.30065311]
[1641467885025,0.13041968,3362.7,3362.2,0.30065311]
[1641467885225,0.13041968,3362.3,3362.2,0.30065311]
[1641467885528,0.13041968,3362.6,3362.2,0.362385]
[1641467885727,1.33508901,3362.8,3362.2,0.362385]
[1641467886025,0.13039379,3362.5,3362.2,0.362385]
[1641467886426,1.67520852,3363.0,3362.4,1.48628162]
[1641467886627,8.52e-06,3363.0,3362.5,0.132394]
[1641467886827,2.00506125,3364.0,3362.9,2.98595034]
[1641467887028,2.00506125,3364.0,3363.5,1.5]
[1641467887227,2.00506125,3364.0,3363.6,0.132394]
[1641467888030,2.00506125,3364.0,3363.9,4.00958]
[1641467888228,2.50898661,3364.2,3363.9,4.371965]
[1641467888829,4.17320393,3364.7,3363.9,4.371965]
[1641467889029,4.59325643,3365.0,3363.9,4.371965]
[1641467889231,1.5,3365.1,3363.9,4.936365]
[1641467889431,2.31059862,3365.3,3363.9,4.936365]
[1641467889829,2.31059862,3365.3,3364.0,1.08220124]
[1641467890030,2.31059862,3365.3,3364.7,2.00479]
[1641467890231,0.132394,3365.2,3364.7,2.137184]
[1641467890736,2.00479,3365.3,3364.7,2.137184]
[1641467891430,2.00479,3365.3,3364.7,2.936484]
[1641467892633,2.00479,3365.6,3364.7,2.936484]
[1641467894136,2.00479,3365.6,3364.7,4.941274]
[1641467894334,0.5,3365.2,3364.7,4.941274]
[1641467894536,1.0,3365.2,3365.0,1.48517572]
[1641467894734,2.5,3365.2,3365.1,0.362385]
[1641467895540,5.467,3367.2,3365.1,3.34736443]
[1641467895842,34.0301,3367.0,3365.3,1.5]
[1641467896138,1.5,3366.7,3366.3,2.00479]
[1641467896336,2.00479,3367.1,3366.3,2.00479]
[1641467896937,0.132394,3367.0,3366.4,0.132394]
[1641467897338,2.00479,3367.1,3366.4,0.132394]
[1641467897738,1.5,3366.5,3364.7,2.48899124]
[1641467897938,1.5,3365.7,3364.7,1.00369861]
[1641467898138,2.00479,3365.2,3364.7,1.00369861]
[1641467898341,32.6884,3366.4,3364.7,2.48899124]
[1641467898540,32.6884,3366.4,3365.1,1.48511396]
[1641467898739,1.5,3366.2,3364.7,2.48899124]
[1641467898940,1.5,3365.9,3364.7,1.48529263]
[1641467899140,32.7571,3366.6,3364.7,1.48529263]
[1641467899440,1.5,3366.2,3364.7,1.48529263]
[1641467899641,1.5,3366.3,3364.7,1.48529263]
[1641467899841,1.5,3366.2,3364.7,1.48529263]
[1641467900040,1.5,3366.5,3364.7,1.48529263]
[1641467900243,2.00479,3365.9,3365.1,2.00479]
[1641467900641,2.00479,3365.9,3365.2,0.16804181]
[1641467901242,2.137184,3365.9,3365.2,0.16804181]
[1641467901450,0.33195819,3365.2,3365.1,2.00479]
[1641467901644,0.33195819,3365.2,3365.1,2.234781]
[1641467902650,0.46638683,3365.2,3365.1,2.4028275]
[1641467903251,0.46638683,3365.2,3365.1,3.88796131]
[1641467903651,0.13442864,3365.2,3365.1,3.88796131]
[1641467903849,2.00479,3365.9,3365.1,3.88796131]
[1641467904249,2.00479,3365.9,3365.1,3.71991481]
[1641467905053,0.11964102,3365.8,3365.2,0.16804567]
[1641467907454,0.25203502,3365.8,3365.2,0.16804567]
[1641467907854,0.11964102,3365.7,3365.2,0.16804567]
[1641467908155,0.132394,3365.6,3365.2,0.16804567]
[1641467908559,0.11964102,3365.5,3365.2,0.16804567]
[1641467908755,0.11964102,3365.5,3365.3,0.229991]
[1641467908957,0.11964102,3365.5,3365.2,0.16804567]
[1641467909157,0.11964102,3365.5,3365.4,0.16804567]
[1641467909357,0.11964102,3365.5,3365.3,0.16804567]
[1641467909557,0.11964102,3365.5,3365.4,0.16804567]
[1641467909757,0.19625002,3365.5,3365.4,0.16804567]
[1641467909958,0.19625002,3365.5,3365.2,0.16804567]
[1641467909959,1.576609,3365.5,3365.2,0.16804567]
[1641467910158,2.00479,3365.3,3365.2,0.16804567]
[1641467910360,2.00479,3365.3,3364.4,2.00479]
[1641467910658,2.00479,3365.3,3363.9,1.48566335]
[1641467910659,1.5,3365.2,3363.9,1.48566335]
[1641467911167,2.59959,3365.3,3363.9,1.48566335]
[1641467911459,2.00479,3365.3,3363.9,1.48566335]
[1641467911659,0.1381547,3365.2,3364.0,0.16807767]
[1641467912159,0.1381547,3365.2,3364.2,2.00479]
[1641467912758,0.1381547,3365.2,3364.3,0.16807767]
[1641467914260,1.1381547,3365.2,3364.3,0.16807767]
[1641467914662,0.1381547,3365.1,3364.3,0.16807767]
[1641467915260,0.132394,3365.0,3364.3,0.16807767]
[1641467915660,0.1381547,3364.9,3364.3,0.16807767]
[1641467916462,0.1381547,3365.1,3364.3,0.16807767]
[1641467916662,0.1381547,3364.8,3364.4,1.48543825]
[1641467916962,0.1381547,3365.0,3364.4,1.48543825]
[1641467917261,0.1381547,3365.0,3364.5,0.16807767]
[1641467917461,0.2705487,3365.1,3364.5,0.16807767]
[1641467917661,0.1381547,3364.9,3364.5,0.16807767]
[1641467917861,0.1381547,3365.0,3364.5,0.16807767]
[1641467918262,0.1381547,3364.8,3364.5,0.16807767]
[1641467918462,0.1381547,3364.9,3364.6,0.229991]
[1641467918861,0.1381547,3365.1,3364.7,0.16807767]
[1641467919065,0.1381547,3364.8,3364.7,0.16807767]
[1641467919261,0.1381547,3365.0,3364.7,0.39806867]
[1641467919463,0.1381547,3364.8,3364.7,0.229991]
[1641467919862,0.1381547,3364.9,3364.7,0.229991]
[1641467920062,0.1381547,3364.8,3364.7,0.229991]
[1641467920465,0.1381547,3365.1,3364.7,0.229991]
[1641467920670,0.1381547,3364.8,3364.7,0.229991]
[1641467921264,0.1381547,3365.1,3364.7,0.229991]
[1641467921464,0.1381547,3364.8,3364.7,0.229991]
[1641467921667,0.1381547,3365.0,3364.7,0.229991]
[1641467921864,3.132394,3365.2,3364.7,0.229991]
[1641467923165,0.12294502,3365.1,3364.7,0.229991]
[1641467924967,0.12294502,3365.1,3364.2,2.00479]
[1641467928970,3.0,3365.2,3364.7,1.48528601]
[1641467929372,3.0,3365.2,3364.4,1.5]
[1641467929770,3.0,3365.2,3365.0,1.48519336]
[1641467929971,3.076609,3365.2,3365.1,0.229991]
[1641467930170,3.0,3365.2,3365.1,0.229991]
[1641467930571,3.12291736,3365.2,3365.1,0.229991]
[1641467931773,3.19952636,3365.2,3365.1,0.229991]
[1641467932174,3.19952636,3365.2,3364.6,1.48536102]
[1641467932375,3.12291736,3365.2,3364.6,3.49015102]
[1641467932575,3.0,3365.2,3364.6,3.49015102]
[1641467933274,3.132394,3365.2,3364.6,2.00479]
[1641467933476,0.12291833,3365.1,3364.6,2.00479]
[1641467934375,0.12291833,3365.1,3364.3,2.48916996]
[1641467934577,0.12291833,3365.1,3364.8,1.48524631]
[1641467934776,0.12291833,3365.1,3365.0,2.98508749]
[1641467934777,1.833e-05,3365.1,3365.0,2.98508749]
[1641467934975,64.5931,3366.5,3365.0,2.98508749]
[1641467935275,32.3976,3366.5,3365.3,1.5]
[1641467935474,5.467,3366.8,3366.0,1.48471486]
[1641467935875,63.0239,3367.3,3366.0,1.48471486]
[1641467936075,0.12288098,3366.7,3366.1,0.16800499]
[1641467936275,0.12288098,3367.2,3366.1,0.71680499]
[1641467936575,2.00479,3366.5,3365.4,3.48978487]
[1641467936776,2.00479,3366.5,3365.4,1.48499487]
[1641467937475,2.00479,3366.5,3365.1,2.00479]
[1641467937877,0.14137638,3366.4,3365.2,1.48507647]
[1641467938481,2.00479,3365.7,3365.2,1.48507647]
[1641467938877,0.14137638,3365.6,3365.2,1.48507647]
[1641467940678,0.64137638,3365.6,3365.2,1.48507647]
[1641467940881,0.64137638,3365.6,3365.1,2.00479]
[1641467940882,0.64137638,3365.6,3364.6,3.33305351]
[1641467941079,2.14137638,3365.6,3364.6,1.32826351]
[1641467941279,0.14137638,3365.5,3364.5,1.32826351]
[1641467941679,1.5,3365.3,3364.5,1.32826351]
[1641467941879,1.5,3364.9,3364.0,1.99701596]
[1641467942079,1.48598346,3364.6,3364.0,1.99701596]
[1641467942279,0.132394,3364.5,3364.0,1.99701596]
[1641467942484,4.00958,3364.1,3364.0,1.99701596]
[1641467942781,4.00958,3364.1,3363.9,1.33364937]
[1641467942782,4.086189,3364.1,3363.9,1.33364937]
[1641467942980,4.22756538,3364.1,3363.9,1.33364937]
[1641467943186,0.14137638,3364.0,3363.9,1.33364937]
[1641467943382,4.086189,3364.1,3363.9,1.33364937]
[1641467943681,0.12792378,3364.0,3363.4,1.99701596]
[1641467944084,0.12792378,3364.0,3363.2,0.63021494]
[1641467944483,2.00479,3363.6,3363.2,0.63021494]
[1641467945086,2.00479,3363.6,3363.1,1.99701596]
[1641467946283,2.00479,3363.6,3363.2,1.99701596]
[1641467946481,0.5,3364.0,3363.2,1.99701596]
[1641467946682,0.132394,3363.9,3363.2,1.99701596]
[1641467946982,0.132394,3363.9,3363.4,1.99701596]
[1641467949386,0.12792968,3363.8,3363.4,1.99701596]
[1641467949586,0.132394,3363.7,3363.4,1.99701596]
[1641467949785,0.076609,3363.6,3363.4,1.99701596]
[1641467950485,0.076609,3363.6,3363.1,1.99701596]
[1641467951488,0.076609,3363.6,3363.3,1.99701596]
[1641467951985,0.076609,3363.6,3363.4,0.39808226]
[1641467952286,0.076609,3363.6,3363.5,0.16809126]
[1641467952587,0.132394,3363.7,3363.5,0.16809126]
[1641467953186,0.132394,3363.8,3363.6,0.229991]
[1641467953387,0.132394,3363.8,3363.6,0.16809126]
[1641467953587,0.132394,3363.8,3363.7,0.16809126]
[1641467954286,0.209003,3363.8,3363.7,0.2983062]
[1641467955090,0.209003,3363.8,3363.3,1.99701596]
[1641467955288,0.209003,3363.8,3363.7,1.33986351]
[1641467956991,0.709003,3363.8,3363.7,1.33986351]
[1641467958401,0.576609,3363.8,3363.7,1.33986351]
[1641467958602,0.5,3363.8,3363.7,1.33986351]
[1641467958803,0.576609,3363.8,3363.7,1.33986351]
[1641467959303,0.5,3363.8,3363.7,1.56985451]
[1641467959504,0.5,3363.8,3363.7,1.33986351]
[1641467959703,1.076609,3363.8,3363.7,1.33986351]
[1641467961006,1.076609,3363.8,3363.2,1.99701596]
[1641467961207,1.076609,3363.8,3363.3,1.99701596]
[1641467962008,1.0,3363.8,3363.3,1.99701596]
[1641467962908,1.0,3363.8,3363.3,3.49701596]
[1641467963108,1.0,3363.8,3363.7,1.33958459]
[1641467963310,1.0,3363.8,3363.7,1.56957559]
[1641467964010,1.0,3363.8,3363.7,0.229991]
[1641467964410,0.5,3364.0,3363.7,0.229991]
[1641467964610,2.00479,3364.1,3364.0,0.01646793]
[1641467964811,2.00479,3364.1,3364.0,0.24645893]
[1641467965215,2.081399,3364.1,3364.0,0.01646793]
[1641467965612,0.076609,3364.1,3364.0,0.01646793]
[1641467966116,2.00479,3364.7,3364.0,0.24645893]
[1641467966312,0.132394,3364.6,3364.0,0.01646793]
[1641467966513,2.00479,3364.2,3364.0,0.01646793]
[1641467966715,2.081399,3364.2,3364.0,0.01646793]
[1641467967314,2.00479,3364.2,3364.0,0.24645893]
[1641467967613,2.081399,3364.2,3364.1,1.33964122]
[1641467968016,2.00479,3364.2,3364.1,1.33964122]
[1641467969516,2.00479,3364.2,3364.1,0.16806959]
[1641467970818,2.00479,3364.2,3364.1,0.55136059]
[1641467971716,2.234699,3364.2,3364.1,0.55136059]
[1641467971917,2.00479,3364.2,3364.1,0.55136059]
[1641467972121,2.00479,3364.2,3364.1,0.16806959]
[1641467972717,2.234699,3364.2,3364.1,0.16806959]
[1641467972921,2.50479,3364.2,3364.1,0.55136059]
[1641467973120,2.50479,3364.2,3364.1,0.16806959]
[1641467973517,2.734699,3364.2,3364.1,0.16806959]
[1641467973718,2.00479,3364.7,3364.1,0.16806959]
[1641467973917,0.5,3364.2,3364.1,0.16806959]
[1641467974119,0.5,3364.2,3364.1,2.05136059]
[1641467974419,2.00479,3364.7,3364.1,2.05136059]
[1641467974623,2.00479,3365.1,3364.3,2.00479]
[1641467975021,2.00479,3365.1,3364.4,0.16806959]
[1641467975219,2.00479,3365.1,3364.5,0.264788]
[1641467975619,0.14636956,3365.0,3364.6,0.16806959]
[1641467975819,0.14636956,3365.0,3364.6,0.43285759]
[1641467976219,0.14636956,3365.0,3364.7,0.16806959]
[1641467976420,0.229909,3364.9,3364.7,0.16806959]
[1641467976621,0.14636956,3365.0,3364.8,0.648079]
[1641467976820,2.00479,3365.1,3364.8,0.648079]
[1641467977120,0.14637399,3365.0,3364.9,0.16806959]
[1641467977520,0.14637399,3365.0,3364.9,0.55136059]
[1641467977922,0.37628299,3365.0,3364.9,0.16806959]
[1641467978122,0.14637399,3365.0,3364.9,0.16806959]
[1641467978420,0.14637399,3365.0,3364.9,0.55136059]
[1641467979021,0.37628299,3365.0,3364.9,0.16806959]
[1641467980322,0.37628299,3365.0,3364.7,0.16806959]
[1641467980524,0.37628299,3365.0,3364.9,0.16806959]
[1641467980925,0.37628299,3365.0,3364.7,0.16806959]
[1641467981327,0.14637399,3364.9,3364.7,0.16806959]
[1641467981727,0.229909,3364.8,3364.7,0.16806959]
[1641467982127,0.229909,3364.8,3364.6,0.16806959]
[1641467982528,0.37628299,3364.8,3364.7,0.16806959]
[1641467982728,0.37628299,3364.8,3364.7,0.79818969]
[1641467982929,3.00479,3365.1,3364.7,1.2781991]
[1641467983130,3.00479,3365.1,3364.7,1.44626869]
[1641467983327,3.00479,3365.1,3364.8,0.16806959]
[1641467983529,0.229909,3365.0,3364.8,0.16806959]
[1641467983828,0.87628336,3365.0,3364.8,0.16806959]
[1641467984028,0.729909,3365.0,3364.8,0.16806959]
[1641467984328,0.14637498,3364.9,3364.8,0.16806959]
[1641467984527,0.54355698,3364.9,3364.5,1.33948293]
[1641467984728,2.00479,3364.7,3364.5,1.33948293]
[1641467984928,0.229909,3364.6,3364.5,1.33948293]
[1641467985127,2.127091,3364.6,3364.0,2.01348389]
[1641467985328,1.5,3364.1,3363.7,2.50898661]
[1641467985528,0.397182,3364.0,3363.7,2.50898661]
[1641467985730,0.229909,3363.9,3363.4,3.32825573]
[1641467985929,0.229909,3363.9,3363.8,0.16810442]
[1641467986128,0.229909,3363.9,3363.4,3.32825573]
[1641467986129,1.48639208,3363.7,3363.4,3.32825573]
[1641467986529,0.627091,3363.6,3363.4,3.32825573]
[1641467986728,0.397182,3363.6,3363.4,3.32825573]
[1641467986929,3.38360059,3363.6,3363.1,2.00479]
[1641467987128,1.88360059,3363.6,3363.1,2.00479]
[1641467987329,0.16492866,3363.5,3363.1,2.00479]
[1641467987530,0.397182,3363.4,3363.1,2.00479]
[1641467987730,0.229909,3363.3,3363.1,2.00479]
[1641467988130,0.229909,3363.3,3363.2,0.63030813]
[1641467989832,1.229909,3363.3,3363.2,0.63030813]
[1641467990033,1.5,3363.3,3363.2,1.01359913]
[1641467990835,1.729909,3363.3,3363.2,0.63030813]
[1641467991034,1.5,3363.3,3363.2,0.63030813]
[1641467991833,1.5,3363.3,3363.2,1.27838713]
[1641467993033,1.729909,3363.3,3363.2,0.89509613]
[1641467993233,1.5,3363.3,3363.2,1.27838713]
[1641467994334,2.00479,3363.9,3363.2,1.27838713]
[1641467994736,2.401972,3363.9,3363.2,1.27838713]
[1641467994934,2.401972,3363.9,3363.2,0.89509613]
[1641467995137,2.401972,3363.9,3363.2,0.63030813]
[1641467995538,0.16810407,3363.8,3363.2,0.63030813]
[1641467995739,0.397182,3363.7,3363.2,0.63030813]
[1641467996339,0.397182,3363.7,3363.4,1.00417966]
[1641467996541,0.229909,3363.6,3363.4,1.00417966]
[1641467996739,0.397182,3363.5,3363.4,1.00417966]
[1641467997142,0.397182,3363.5,3363.2,1.96921435]
[1641467997343,0.397182,3363.5,3363.4,1.33890622]
[1641467998244,0.627091,3363.5,3363.4,1.33890622]
[1641467999345,2.00479,3363.9,3363.4,1.33890622]
[1641467999346,2.00479,3363.9,3363.4,0.383291]
[1641467999544,2.401972,3363.9,3363.2,1.96921435]
[1641467999944,1.5,3363.7,3363.3,0.264788]
[1641468000345,1.5,3363.7,3363.6,1.00486703]
[1641468000549,1.729909,3363.7,3363.6,1.00486703]
[1641468001251,1.729909,3363.7,3363.6,1.15767427]
[1641468001748,1.5,3363.7,3363.6,1.80575327]
[1641468002547,1.5,3363.7,3363.6,2.4360614]
[1641468003150,1.729909,3363.7,3363.6,1.04790337]
[1641468003551,1.5,3363.7,3363.6,1.43119437]
[1641468004349,1.729909,3363.7,3363.6,1.04790337]
[1641468004548,1.729909,3363.7,3363.6,2.38799884]
[1641468005248,1.5,3363.7,3363.6,2.77128984]
[1641468005848,1.729909,3363.7,3363.6,2.38799884]
[1641468006052,1.5,3363.7,3363.6,2.12321084]
[1641468006249,2.0,3363.7,3363.6,0.78311537]
[1641468006651,2.729909,3363.7,3363.6,0.78311537]
[1641468006851,2.5,3363.7,3363.6,0.78311537]
[1641468007653,2.729909,3363.7,3363.6,0.78311537]
[1641468007853,2.5,3363.7,3363.6,0.78311537]